[Event "Reykjavik Open 2024"]
[Site "Reykjavik"]
[Date "2024.03.19"]
[Round "7.23"]
[White "Mammadzada, Gunay"]
[Black "Mannion, Stephen R"]
[Result "1-0"]
[ECO "C79"]
[WhiteElo "2449"]
[BlackElo "2166"]
[Annotator "RC"]
[PlyCount "135"]
[EventDate "2024.03.12"]
[EventCountry "ISL"]
[SourceTitle "playchess.com"]
[Source "ChessBase"]
[SourceQuality "1"]
[TimeControl "40/5400+30:1800+30"]

1. e4 {[%emt 0:00:57]} e5 {[%emt 0:00:06]} 2. Nf3 {[%emt 0:00:59]} Nc6 {[%emt 0:00:06]} 3. Bb5 {[%emt 0:00:03]} a6 {[%emt 0:00:06]} 4. Ba4 {[%emt 0:00:20]} Nf6 {[%emt 0:00:07]} 5. O-O {[%emt 0:00:20]} d6 {[%emt 0:00:09]} 6. c3 {[%emt 0:01:57]} Bd7 {[%emt 0:00:26]} 7. d4 {[%emt 0:00:45]} g6 {[%emt 0:01:56]} 8. Bg5 {[%emt 0:03:18]} Bg7 {[%emt 0:00:48]} 9. d5 {[%emt 0:02:52]} Ne7 {[%emt 0:00:59]} 10. Bxf6 {[%emt 0:00:17]} Bxf6 {[%emt 0:00:27]} 11. Bxd7+ {[%emt 0:00:09]} Qxd7 {[%emt 0:00:11]} 12. c4 {[%emt 0:00:05]} O-O {[%emt 0:01:55]} 13. Nc3 {[%emt 0:00:15]} a5 {[%emt 0:15:41]} 14. Qa4 {[%emt 0:16:37]} Qd8 {[%emt 0:13:14]} 15. a3 {[%emt 0:13:54]} Bg7 {[%emt 0:00:41]} 16. b4 {[%emt 0:08:42]} axb4 {[%emt 0:03:23]} 17. Qxb4 {[%emt 0:00:02]} b6 {[%emt 0:00:14]} 18. a4 {[%emt 0:00:03]} Ra5 {[%emt 0:09:17]} 19. Nb5 {[%emt 0:07:10]} Qd7 {[%emt 0:02:51]} 20. Nd2 {[%emt 0:06:03]} f5 {[%emt 0:00:06]} 21. Nb3 {[%emt 0:00:16]} Raa8 {[%emt 0:00:17]} 22. f3 {[%emt 0:00:59]} fxe4 {[%emt 0:02:00]} 23. fxe4 {[%emt 0:00:04]} Bh6 {[%emt 0:00:16]} 24. Rxf8+ {[%emt 0:07:03]} Rxf8 {[%emt 0:03:01]} 25. Qe1 {[%emt 0:00:06]} c6 {[%emt 0:17:56]} 26. dxc6 {[%emt 0:06:45]} Qxc6 {[%emt 0:00:11]} 27. Qe2 {[%emt 0:00:44]} Kg7 {[%emt 0:12:24]} 28. h3 {[%emt 0:03:09]} Bf4 {[%emt 0:03:11]} 29. Rd1 {[%emt 0:01:37]} Rf6 {[%emt 0:00:51]} 30. Qd3 {[%emt 0:00:38]} Nc8 {[%emt 0:00:03]} 31. g3 {[%emt 0:08:23]} Bh6 {[%emt 0:00:18]} 32. Kg2 {[%emt 0:00:26]} Qd7 {[%emt 0:01:53]} 33. Na1 {[%emt 0:05:11]} Qf7 {[%emt 0:00:50]} 34. Qe2 {[%emt 0:00:01]} Qd7 {[%emt 0:03:29]} 35. Nc2 {[%emt 0:00:29]} Ne7 {[%emt 0:02:09]} 36. Qd3 {[%emt 0:01:16]} Qc6 {[%emt 0:00:16]} 37. Rf1 {[%emt 0:01:15]} Rxf1 {[%emt 0:02:45]} 38. Kxf1 {[%emt 0:00:01]} Nc8 {[%emt 0:00:04]} 39. Nb4 {[%emt 0:00:43]} Qc5 {[%emt 0:02:16]} 40. Nd5 {[%emt 0:00:24]} Qc6 {[%emt 0:02:51]} 41. Kg2 {[%emt 0:34:43]} Bg5 {[%emt 0:03:43]} 42. Ndc7 {[%emt 0:00:00]} Be7 {[%emt 0:03:00]} 43. Qd5 {[%emt 0:00:00]} Qxd5 {[%emt 0:02:47]} 44. cxd5 {[%emt 0:00:00]} Kf7 {[%emt 0:02:29]} 45. Ne6 {[%emt 0:00:00]} Bf6 {[%emt 0:05:37]} 46. h4 {[%emt 0:00:00]} h5 {[%emt 0:02:17]} 47. Na3 {[%emt 0:00:00]} Bg7 {[%emt 0:01:58]} 48. Nc4 {[%emt 0:00:00]} Bh6 {[%emt 0:06:04]} 49. Nc7 {[%emt 0:00:00]} Ke7 {[%emt 0:00:30]} 50. Na8 {[%emt 0:00:00]} Bc1 {[%emt 0:03:06]} 51. Kf3 {[%emt 0:00:00]} Kd8 {[%emt 0:00:39]} 52. g4 {[%emt 0:00:00]} Kd7 {[%emt 0:01:17]} 53. Naxb6+ {[%emt 0:02:53]} Nxb6 {[%emt 0:00:05]} 54. Nxb6+ {[%emt 0:00:04]} Kc7 {[%emt 0:00:19]} 55. Nc4 {[%emt 0:00:01]} Bh6 {[%emt 0:00:19]} 56. Kg3 {[%emt 0:04:58]} Bf8 {[%emt 0:00:06]} 57. Kh3 {[%emt 0:00:20]} Bh6 {[%emt 0:01:57]} 58. Kg2 {[%emt 0:01:07]} Kd7 {[%emt 0:00:41]} 59. a5 {[%emt 0:00:45]} Kc7 {[%emt 0:00:04]} 60. Kh3 {[%emt 0:00:09]} Bf8 {[%emt 0:00:37]} 61. gxh5 {[%emt 0:00:12]} gxh5 {[%emt 0:00:04]} 62. Ne3 {[%emt 0:00:03]} Kb7 {[%emt 0:00:11]} 63. Nf5 {[%emt 0:00:04]} Ka6 {[%emt 0:00:03]} 64. Ng3 {[%emt 0:00:03]} Kxa5 {[%emt 0:00:05]} 65. Nxh5 {[%emt 0:00:02]} Kb5 {[%emt 0:00:32]} 66. Kg4 {[%emt 0:00:08]} Kc4 {[%emt 0:00:07]} 67. Kf5 {[%emt 0:01:42]} Kd3 {[%emt 0:00:56]} 68. Nf6 {[%emt 0:00:13]} 1-0

[Event "Reykjavik Open 2024"]
[Site "Reykjavik"]
[Date "2024.03.19"]
[Round "7.24"]
[White "Birkisson, Bjorn Holm"]
[Black "Chasin, Nico"]
[Result "0-1"]
[ECO "A28"]
[WhiteElo "2140"]
[BlackElo "2447"]
[Annotator "TA"]
[PlyCount "68"]
[EventDate "2024.03.12"]
[EventCountry "ISL"]
[SourceTitle "playchess.com"]
[Source "ChessBase"]
[SourceQuality "1"]
[TimeControl "40/5400+30:1800+30"]

{[%evp 13,68,0,8,-7,28,18,27,19,14,0,0,-9,-19,-40,-28,-79,-78,-127,12,20,0,0,31,18,29,24,31,0,0,6,8,0,21,-38,-35,-26,-29,-41,0,-93,-110,-93,-80,-62,-40,-280,-275,-403,-382,-715,-600,-1081,-1079,-920,-1056,-1007,-963]} 1. c4 {[%emt 0:03:53]} e5 {[%emt 0:04:27]} 2. Nc3 {[%emt 0:00:00]} Nf6 {[%emt 0:00:58]} 3. Nf3 {[%emt 0:00:00]} Nc6 {[%emt 0:00:27]} 4. e3 {[%emt 0:00:00]} Bb4 {[%emt 0:00:09]} 5. Qc2 {[%emt 0:00:00]} Bxc3 {[%emt 0:00:51]} 6. Qxc3 {[%emt 0:00:00]} Qe7 {[%emt 0:00:10]} 7. a3 {[%emt 0:00:00]} a5 {[%emt 0:00:19] [#]} 8. b4 $1 {[%emt 0:00:00][%cal Bb2b4,Bb4b5][%mdl 32] aiming for b5.} d6 {[%emt 0:00:25]} (8... e4 9. Nd4) 9. b5 {[%emt 0:00:10]} Nb8 {[%emt 0:00:53]} 10. d4 {[%emt 0:07:10] White has an edge.} Nbd7 {[%emt 0:01:04]} 11. dxe5 {[%emt 0:01:23]} dxe5 {[%emt 0:00:18]} 12. a4 {[%emt 0:01:30]} Ne4 {[%emt 0:00:01]} 13. Qa3 {[%emt 0:05:59]} Nec5 {[%emt 0:03:25]} 14. Bb2 {[%emt 0:10:11]} (14. Qc3 $11) 14... f6 $17 {[%emt 0:01:37]} 15. Qc3 {[%emt 0:09:33] [#]} (15. Be2 $142) 15... e4 {[%emt 0:03:09]} (15... Ne4 $1 $17 {[%cal Re4c3]} 16. Qc2 Qb4+ 17. Nd2 Ndc5) 16. Nd4 $11 {[%emt 0:04:29]} Nb6 {[%emt 0:09:33] Excellent horsemanship.} 17. Qc2 {[%emt 0:01:26]} Bg4 {[%emt 0:00:03]} 18. Ba3 {[%emt 0:06:18] Bxc5 is the strong threat.} O-O {[%emt 0:00:30][%cal Of6f5]} 19. h3 {[%emt 0:00:16]} Bh5 {[%emt 0:00:55][%cal Of6f5]} 20. Ne6 {[%emt 0:02:13]} Qxe6 {[%emt 0:00:12]} 21. Bxc5 {[%emt 0:00:07]} Rfd8 {[%emt 0:04:21]} 22. Rc1 {[%emt 0:01:06]} Rac8 {[%emt 0:04:37]} 23. Be2 {[%emt 0:04:57]} (23. Bd4 $11) 23... Bxe2 {[%emt 0:03:39]} 24. Kxe2 {[%emt 0:00:05]} Nd7 {[%emt 0:00:38]} 25. Bd4 {[%emt 0:01:07]} c6 {[%emt 0:01:25]} 26. Qb1 {[%emt 0:10:53]} (26. c5 $11) 26... c5 $17 {[%emt 0:01:07]} 27. Ba1 {[%emt 0:18:37]} Nb6 {[%emt 0:02:16]} 28. Qa2 {[%emt 0:00:21]} Rd3 $36 {[%emt 0:00:40][%mdl 2048] Black has some pressure. Black is more active.} 29. Rhd1 $2 {[%emt 0:00:04] White does not recover from this.} (29. Bc3 $1 $15) 29... Rcd8 $19 {[%emt 0:00:27]} 30. Rxd3 {[%emt 0:00:30]} (30. Bc3 {was worth a try.} Nxc4 (30... Qxc4 31. Qxc4+ Nxc4 32. Rxd3 $15) 31. Bd4 Rxd1 32. Qxc4 Qxc4+ 33. Rxc4) 30... exd3+ {[%emt 0:00:36]} ({Not} 30... Rxd3 31. Bc3 $11) 31. Kd2 $2 {[%emt 0:00:49]} (31. Kf1 Nxc4 (31... d2 $2 32. Rd1 $19) 32. Kg1 (32. Qxc4 $2 {too greedy.} Qxc4 33. Rxc4 d2 $19)) 31... Qe4 {[%emt 0:00:01] Black is clearly winning.} 32. f3 {[%emt 0:03:16]} Qh4 {[%emt 0:00:01] ( -> ...Qf2+)} 33. Kc3 {[%emt 0:02:55]} d2 {[%emt 0:00:02]} 34. Rd1 {[%emt 0:00:16]} Qe1 {[%emt 0:01:11] Weighted Error Value: White=0.70/Black=0.16 (very precise) .  Loses game:     	White=1     	---        Mistake:       	White=6     	Black=1      Inaccurate:     	White=1     	Black=3      OK:         	White=6     	Black=9      Best:        	White=2     	Black=2} 0-1

[Event "Reykjavik Open 2024"]
[Site "Reykjavik"]
[Date "2024.03.19"]
[Round "7.25"]
[White "Stanford, Sheila Barth"]
[Black "Injac, Teodora"]
[Result "0-1"]
[ECO "D00"]
[WhiteElo "2123"]
[BlackElo "2434"]
[Annotator "TA"]
[PlyCount "52"]
[EventDate "2024.03.12"]
[EventCountry "ISL"]
[SourceTitle "playchess.com"]
[Source "ChessBase"]
[SourceQuality "1"]
[TimeControl "40/5400+30:1800+30"]

{[%evp 9,52,-13,-14,-16,-19,-18,-7,-9,-25,-25,-17,-22,0,-21,-14,-18,-12,0,0,0,0,0,0,-104,-73,-149,-140,-149,-137,-269,-274,-304,-289,-308,-287,-272,-296,-268,-235,-333,-220,-1441,-1341,-6408,-6403]} 1. d4 {[%emt 0:00:05]} Nf6 {[%emt 0:00:37]} 2. Bg5 {[%emt 0:00:06]} d5 {[%emt 0:03:28]} 3. Bxf6 {[%emt 0:00:24]} exf6 {[%emt 0:01:10]} 4. e3 {[%emt 0:00:38]} c6 {[%emt 0:01:20]} 5. g3 {[%emt 0:04:16]} h5 {[%emt 0:04:02]} 6. h4 {[%emt 0:00:54]} Bd6 {[%emt 0:08:22]} 7. Bg2 {[%emt 0:01:48]} Bg4 {[%emt 0:02:32]} 8. Qd3 {[%emt 0:01:25] The position is equal.} O-O {[%emt 0:01:05]} 9. Ne2 {[%emt 0:04:28]} Re8 {[%emt 0:03:27]} 10. Nd2 {[%emt 0:04:14]} a5 {[%emt 0:03:59][%cal Ba7a5,Ba5a4][%mdl 32]} 11. c4 {[%emt 0:06:49]} dxc4 {[%emt 0:06:29]} 12. Nxc4 {[%emt 0:01:30]} Bb4+ {[%emt 0:02:14] This pair of bishops is nice.} 13. Nc3 {[%emt 0:06:19]} Nd7 {[%emt 0:00:11]} 14. O-O {[%emt 0:04:36]} a4 {[%emt 0:05:58]} 15. a3 {[%emt 0:15:49]} Bf8 {[%emt 0:02:21]} 16. f3 {[%emt 0:10:05]} (16. Nd2 $11 {keeps the balance.}) 16... Be6 $17 {[%emt 0:02:50] Strongly threatening ...Bxc4.} 17. Rad1 {[%emt 0:04:14]} (17. Ne4 $142) 17... Bxc4 {[%emt 0:08:42]} 18. Qxc4 {[%emt 0:00:04]} Rxe3 {[%emt 0:00:05] Threatens to win with ...Nb6.} 19. Nxa4 {[%emt 0:07:50] [#]} (19. Rfe1 $17 Rxe1+ 20. Rxe1) 19... Bd6 $1 $19 {[%emt 0:06:04][%cal Of6f5]} 20. Kh2 {[%emt 0:00:00]} f5 {[%emt 0:01:23]} 21. f4 {[%emt 0:00:00]} Nf6 {[%emt 0:00:23]} 22. Nc5 {[%emt 0:01:04]} Ng4+ {[%emt 0:03:08]} 23. Kh3 {[%emt 0:00:10]} Qe7 {[%emt 0:03:39][%cal Oe3g3] ( -> ...Rxg3+!)} 24. Bf3 {[%emt 0:08:52]} (24. Qc2 $142) 24... Re8 {[%emt 0:01:14]} 25. Rd2 {[%emt 0:00:39] [#] Dodges Re2} (25. Qc2) 25... Rxf3 $1 {[%emt 0:02:41][%mdl 512]} 26. Rxf3 {[%emt 0:00:16]} (26. Qc1 Qe3) 26... Qe1 {[%emt 0:00:08] Weighted Error Value: White=0.71/Black=0.13 (very precise) .  Mistake:       	White=5     	---        Inaccurate:     	White=1     	Black=1      OK:         	White=4     	Black=10     Best:        	White=2     	Black=1      Strong:       	---       	Black=1      Brilliant:      	---       	Black=1} 0-1

[Event "Reykjavik Open 2024"]
[Site "Reykjavik"]
[Date "2024.03.19"]
[Round "7.26"]
[White "Li, Harry"]
[Black "Haldorsen, Benjamin"]
[Result "1-0"]
[ECO "B12"]
[WhiteElo "2107"]
[BlackElo "2426"]
[Annotator "TA"]
[PlyCount "77"]
[EventDate "2024.03.12"]
[EventCountry "ISL"]
[SourceTitle "playchess.com"]
[Source "ChessBase"]
[SourceQuality "1"]
[TimeControl "40/5400+30:1800+30"]

{[%evp 10,77,28,27,45,35,35,8,14,-4,-7,-6,0,0,-12,-10,-7,-10,0,-8,0,-73,-66,-78,26,17,15,17,52,43,48,-48,29,0,21,35,18,19,75,89,84,83,122,71,67,59,657,670,791,735,1556,834,1007,322,300,252,1236,1225,1145,1137,1090,1049,5625,5675,5575,5185,4810,4802,2722,2391]} 1. e4 {[%emt 0:00:01]} c6 {[%emt 0:02:25]} 2. d4 {[%emt 0:00:11]} d5 {[%emt 0:00:06]} 3. e5 {[%emt 0:00:24]} Bf5 {[%emt 0:00:26]} 4. Nf3 {[%emt 0:00:11]} e6 {[%emt 0:00:21]} 5. Be2 {[%emt 0:00:09]} Nd7 {[%emt 0:00:18]} 6. O-O {[%emt 0:00:13]} a5 {[%emt 0:00:12]} 7. a4 {[%emt 0:00:18]} f6 {[%emt 0:00:51]} 8. c4 {[%emt 0:00:21]} fxe5 {[%emt 0:15:28] The position is equal.} 9. Nxe5 {[%emt 0:02:52]} Nxe5 {[%emt 0:02:33]} 10. dxe5 {[%emt 0:00:04]} Bc5 {[%emt 0:01:48]} 11. cxd5 {[%emt 0:06:47]} exd5 {[%emt 0:01:45]} 12. Bd3 {[%emt 0:04:03]} Bxd3 {[%emt 0:06:54]} 13. Qxd3 {[%emt 0:00:04]} Ne7 {[%emt 0:00:40][%cal Bg8e7,Be7g6,Bg6f8][%mdl 32]} 14. Nd2 {[%emt 0:06:45]} O-O {[%emt 0:18:17]} 15. Nf3 {[%emt 0:01:17]} (15. Nb3 $1 $11 Bb4 16. Bg5) 15... Ng6 $17 {[%emt 0:00:56]} 16. Be3 {[%emt 0:18:07]} Qb6 {[%emt 0:15:03]} ({Better is} 16... Bxe3 $17 17. Qxe3 Qe7) 17. Bxc5 $11 {[%emt 0:03:15]} Qxc5 {[%emt 0:00:01]} 18. Ng5 {[%emt 0:07:00]} Rfe8 {[%emt 0:05:23]} 19. Rae1 {[%emt 0:01:31]} Nf8 {[%emt 0:01:20]} 20. Qf5 {[%emt 0:11:10]} (20. Kh1 $1 $14) 20... h6 {[%emt 0:02:10]} (20... Re7 $1 $15) 21. Qf7+ {[%emt 0:01:03]} Kh8 {[%emt 0:00:06]} 22. Qh5 {[%emt 0:00:59] Nf7+ would now be deadly.} Re7 {[%emt 0:01:59]} 23. Nf7+ {[%emt 0:01:43]} Kg8 {[%emt 0:00:08]} (23... Kh7 $1 $11 {keeps the balance.}) 24. Nd6 $16 {[%emt 0:00:11]} Rd8 {[%emt 0:05:29]} 25. Kh1 $36 {[%emt 0:10:57][%mdl 2048] Black is under strong pressure.} d4 {[%emt 0:02:00] [#]} 26. Nf5 {[%emt 0:01:33] White is more active.} (26. Qh4 $142 $1 {[%cal Rh4e7]} Ng6 27. Qg3 (27. Nxb7 Qc2 $17) 27... Rxe5 (27... Nxe5 $2 28. Nf5 $18) 28. Ne4 (28. Nxb7 $2 Rxe1 29. Qb3+ Qd5 $19) 28... Rxe4 29. Rxe4) 26... Re6 {[%emt 0:00:36][%cal Od4d3]} 27. f4 {[%emt 0:02:46][%cal Of5g7] And now Nxg7! would win.} Qb4 $2 {[%emt 0:01:53][%mdl 8192] [#] Black cannot hold the game after this.} (27... Rd7 $14) 28. Nxg7 $1 $18 {[%emt 0:03:26][%mdl 512]} Rg6 {[%emt 0:10:59]} (28... Kxg7 29. f5) 29. Nf5 {[%emt 0:00:14]} Kh7 {[%emt 0:00:14]} 30. Nh4 {[%emt 0:01:15]} Rg7 {[%emt 0:00:12]} 31. f5 $2 {[%emt 0:02:34]} (31. e6 {Black must now prevent Nf5.} Rd5 32. Nf5 Rxf5 33. Qxf5+ Kg8 34. Qe5) 31... d3 {[%emt 0:00:18][%cal Bd4d3,Bd3d2][%mdl 32]} 32. f6 {[%emt 0:02:11]} Rg5 {[%emt 0:00:32]} (32... Qg4 33. Qf5+ (33. fxg7 Qxh5 34. Rxf8 Kxg7 $16) 33... Qxf5 34. Nxf5 Rgd7) 33. Qf7+ {[%emt 0:00:00] White is clearly winning.} Kh8 {[%emt 0:00:05] [#]} 34. e6 $1 {[%emt 0:05:36] Intending e7 and mate.} d2 {[%emt 0:02:24]} 35. Rd1 {[%emt 0:00:07] White threatens e7 and mate.} Qxh4 {[%emt 0:01:40]} 36. e7 {[%emt 0:00:06]} (36. Qxb7 $2 {is the wrong capture.} Qe4 (36... Qxa4 $2 37. e7 $18) (36... Nxe6 37. Qxc6 Qg4 38. Rg1 $19) 37. Rg1 Nxe6 $19 (37... Qxe6 $2 38. Qe7 $19)) 36... Rxg2 {[%emt 0:01:43]} 37. exf8=Q+ {[%emt 0:02:08]} (37. exd8=B $2 Qxh2#) 37... Rxf8 {[%emt 0:00:06]} 38. Qxf8+ {[%emt 0:00:05]} Rg8 {[%emt 0:00:05]} 39. Qa3 {[%emt 0:02:00] Weighted Error Value: White=0.39/Black=0.51.  Loses game:     	---       	Black=1      Mistake:       	White=3     	Black=4      Inaccurate:     	White=1     	Black=2      OK:         	White=6     	Black=8      Best:        	White=3     	Black=1      Brilliant:      	White=1     	---} 1-0

[Event "Reykjavik Open 2024"]
[Site "Reykjavik"]
[Date "2024.03.19"]
[Round "7.27"]
[White "Sivanandan, Bodhana"]
[Black "Fantinel, Thibault"]
[Result "0-1"]
[ECO "B23"]
[WhiteElo "2088"]
[BlackElo "2421"]
[Annotator "TA"]
[PlyCount "152"]
[EventDate "2024.03.12"]
[EventCountry "ISL"]
[SourceTitle "playchess.com"]
[Source "ChessBase"]
[SourceQuality "1"]
[TimeControl "40/5400+30:1800+30"]

{[%evp 62,151,-8,-14,0,-205,-113,-233,-50,-95,-80,-135,-114,-110,-106,-205,-218,-205,-172,-259,-221,-406,-237,-385,-351,-440,-424,-441,-439,-377,-408,-604,-618,-489,-351,-881,-444,-547,-239,-268,0,-849,0,0,0,0,29998,-186,-186,-187,-179,-421,-417,-1027,-968,-12029,-9386,-5762,-5297,-11537,-1736,-29940,-6644,-1817,0,-29958,-29961,-29968,-29966,-29981,-29982,-29985,-29985,-29985,-29986,-29987,-29988,-29988,-29989,-29989,-29990,-29990,-29990,-29990,-29991,-29992,-29993,-29993,-29994,-29998,-29999,-29999]} 1. e4 {[%emt 0:08:05]} c5 {[%emt 0:00:08]} 2. Nc3 {[%emt 0:00:24]} Nc6 {[%emt 0:00:17]} 3. f4 {[%emt 0:00:43]} g6 {[%emt 0:00:10]} 4. Nf3 {[%emt 0:00:38]} Bg7 {[%emt 0:00:06]} 5. a4 {[%emt 0:00:39]} b6 {[%emt 0:00:37]} 6. Bc4 {[%emt 0:01:17] B23: Sizilianisch (Geschlossenes System).} e6 {[%emt 0:00:47]} 7. O-O {[%emt 0:01:41]} Nge7 {[%emt 0:00:36]} 8. d3 {[%emt 0:01:38]} d5 {[%emt 0:00:37]} 9. Ba2 $146 {[%emt 0:02:19]} ({Predecessor:} 9. Bb5 O-O 10. Qe1 Nd4 11. Nxd4 cxd4 12. Ne2 a6 13. Bxa6 Bxa6 14. e5 Nc6 15. Qf2 {0-1 McCrea,R (1538)-Daggupati,B (2501) Texas Collegiate Finals 2023 (1.4)}) 9... O-O {[%emt 0:00:31]} 10. e5 {[%emt 0:02:46]} Bb7 {[%emt 0:05:02]} 11. Ne2 {[%emt 0:03:44]} d4 {[%emt 0:07:59]} 12. Ng3 {[%emt 0:03:45]} Nb4 {[%emt 0:02:13]} 13. Bc4 {[%emt 0:06:21]} a6 {[%emt 0:07:22]} 14. Bd2 {[%emt 0:02:29]} Nbd5 {[%emt 0:22:42]} 15. Ng5 {[%emt 0:08:46]} Qd7 {[%emt 0:09:48]} 16. N5e4 {[%emt 0:06:25]} Qc6 {[%emt 0:07:05]} 17. Qe2 {[%emt 0:08:34]} b5 {[%emt 0:00:11]} 18. Bxd5 {[%emt 0:01:11]} Nxd5 {[%emt 0:03:42]} 19. axb5 {[%emt 0:05:04]} axb5 {[%emt 0:00:03]} 20. Nd6 {[%emt 0:01:12]} Rxa1 {[%emt 0:05:49]} 21. Rxa1 {[%emt 0:00:21]} Ra8 {[%emt 0:00:04]} 22. Rxa8+ {[%emt 0:01:53]} Bxa8 {[%emt 0:01:31]} 23. Nde4 {[%emt 0:02:20]} Bf8 {[%emt 0:03:09]} 24. b3 {[%emt 0:02:48]} Be7 {[%emt 0:04:54]} 25. Qf1 {[%emt 0:07:13]} Qa6 {[%emt 0:00:41]} 26. Qb1 {[%emt 0:01:06]} Kg7 {[%emt 0:03:10]} 27. h3 {[%emt 0:01:14]} b4 {[%emt 0:02:08]} 28. Qd1 {[%emt 0:04:14]} Bb7 {[%emt 0:03:36]} 29. Kh2 {[%emt 0:00:48]} Qa2 {[%emt 0:00:52]} 30. Ng5 {[%emt 0:07:17]} h6 {[%emt 0:04:12]} 31. N5e4 {[%emt 0:00:25]} Nc3 {[%emt 0:00:53]} 32. Bxc3 {[%emt 0:03:06]} bxc3 {[%emt 0:00:05]} 33. Ne2 $2 {[%emt 0:01:58]} (33. Nf6 $11 {und Weiss muss sich keine Sorgen machen.}) 33... Bd5 {[%emt 0:00:41]} (33... Qa8 $1 $19 34. N2g3 Bc6) 34. Kg1 {[%emt 0:00:51]} (34. Kg3 $17 {ist wohl besser.}) 34... Qb2 $2 {[%emt 0:01:06]} (34... Qa8 $1 $19 35. N2g3 h5) 35. Kf2 {[%emt 0:00:51]} Kf8 {[%emt 0:00:52]} 36. Qc1 {[%emt 0:00:50]} ({Günstiger ist} 36. g3) 36... Ke8 {[%emt 0:01:32]} 37. Qd1 {[%emt 0:00:51]} Kd7 {[%emt 0:00:10]} 38. Nf6+ {[%emt 0:00:13]} (38. Kg1 $17) 38... Bxf6 $19 {[%emt 0:01:25]} 39. exf6 {[%emt 0:00:08]} Kc6 {[%emt 0:00:11]} 40. g4 {[%emt 0:01:24]} (40. g3 $142) 40... Kb5 $19 {[%emt 0:01:21]} 41. h4 $2 {[%emt 0:06:32]} (41. g5 hxg5 42. fxg5) 41... Kb4 $19 {[%emt 0:01:29]} 42. h5 {[%emt 0:00:59]} gxh5 {[%emt 0:01:09]} 43. g5 {[%emt 0:01:09]} hxg5 {[%emt 0:00:06]} 44. fxg5 {[%emt 0:00:18]} e5 $1 {[%emt 0:02:09]} 45. Kg3 {[%emt 0:03:16]} Qa2 {[%emt 0:06:05]} 46. Kh4 {[%emt 0:03:27]} (46. g6 $142 fxg6 47. Kh4) 46... Qa6 $19 {[%emt 0:10:33]} (46... Bf3 47. g6 fxg6 48. Nxc3 dxc3 (48... Kxc3 49. Qxf3 Qa5 50. f7 $18) 49. Qxf3 Qxc2 50. f7 Qh2+ (50... Kxb3 $2 51. f8=Q $18) 51. Kg5 $19) 47. Ng3 {[%emt 0:02:45]} Qe6 {[%emt 0:03:42]} 48. Nxh5 $2 {[%emt 0:02:31]} (48. Qxh5 e4 49. dxe4 Bxe4 50. Qe2) 48... Bc6 {[%emt 0:05:15]} 49. Ng7 {[%emt 0:06:13]} Qd6 {[%emt 0:00:28]} (49... Qd5 $142 50. g6 e4 (50... fxg6 51. Qf1 $19)) 50. Nf5 $19 {[%emt 0:01:29]} Qd8 $2 {[%emt 0:01:57]} (50... Qc7 $19 {Weiss muss nun ...e4 beachten.} 51. Ne7 e4) 51. Qa1 $2 {[%emt 0:03:36][%mdl 8192]} (51. Ne7 $11 Qh8+ 52. Kg3) 51... Qd7 $2 {[%emt 0:02:39]} (51... Qh8+ $19 52. Nh6 e4 53. dxe4 Qh7) 52. Ne7 $1 $11 {[%emt 0:00:17]} Bg2 {[%emt 0:00:58]} 53. Kg3 {[%emt 0:05:05]} Bh3 $2 {[%emt 0:01:03][%mdl 8192] [#]} (53... Qh3+ $11 54. Kf2 Kb5 (54... Qf3+ 55. Kg1 $11) 55. Qa4+ Kb6) 54. Qa4+ $4 {[%emt 0:00:34][%mdl 8192]} (54. Nd5+ $1 {[%mdl 512] setzt Matt} Qxd5 55. Qa4#) 54... Qxa4 $19 {[%emt 0:00:04]} 55. bxa4 {[%emt 0:00:04] [#]} Be6 $1 {[%emt 0:00:43]} 56. Nc6+ $2 {[%emt 0:00:32]} (56. g6 fxg6 (56... Kxa4 $2 {ist das falsche Schlagen.} 57. g7 $18) 57. a5 (57. Nxg6 $2 Kxa4 58. Nxe5 Ka3 $19) 57... Kxa5 58. Nxg6) 56... Kxa4 $19 {[%emt 0:00:24]} 57. Nxe5 {[%emt 0:01:17] [#]} (57. Kf3 $142 Ka3 (57... Bd5+ 58. Ke2 $19) 58. Ke4) 57... Ka3 $1 $19 {[%emt 0:00:18]} 58. Nf3 {[%emt 0:00:33]} Kb2 {[%emt 0:00:15]} 59. Ne1 {[%emt 0:00:04]} Kc1 {[%emt 0:00:17]} 60. Kf2 {[%emt 0:00:07]} Kd2 {[%emt 0:00:08]} 61. Kf1 {[%emt 0:00:13]} Bf5 {[%emt 0:01:42]} 62. Kf2 {[%emt 0:00:30]} Be6 {[%emt 0:00:41]} (62... Bg6 $19 63. Kf1 c4 64. dxc4 Bxc2) 63. Kf1 {[%emt 0:00:06]} Kd1 {[%emt 0:00:08]} 64. Kf2 {[%emt 0:02:19]} c4 {[%emt 0:00:09]} 65. Kf1 {[%emt 0:00:23]} cxd3 {[%emt 0:00:23]} 66. cxd3 {[%emt 0:00:24]} c2 {[%emt 0:00:18]} 67. Nxc2 {[%emt 0:00:10]} Kxc2 {[%emt 0:00:05]} 68. Ke2 {[%emt 0:00:08]} Bf5 {[%emt 0:00:06]} 69. Kf3 {[%emt 0:00:07]} Kxd3 {[%emt 0:00:04]} 70. Kf4 {[%emt 0:00:15]} Bg6 {[%emt 0:00:04]} 71. Ke5 {[%emt 0:00:11]} Ke3 {[%emt 0:00:05]} 72. Kd6 {[%emt 0:00:12]} d3 {[%emt 0:00:04]} 73. Ke7 {[%emt 0:00:08]} d2 {[%emt 0:00:04]} 74. Kf8 {[%emt 0:00:09]} d1=Q {[%emt 0:00:12]} 75. Kg7 {[%emt 0:00:08]} Qd8 {[%emt 0:00:25]} 76. Kh6 {[%emt 0:00:07]} Qh8# {[%emt 0:00:02]} 0-1